[Event "Titled Tuesday Blitz January 11 2022"]
[White "Svane, Rasmus"]
[Black "Wagner, Dennis"]
[WhiteFideId "4657101"]
[BlackFideId "24650684"]
[WhiteElo "2645"]
[BlackElo "2355"]
[Result "1-0"]
[Round "06"]
[TimeControl "180+1"]
[Date "2022.01.11"]
[WhiteClock "0:00:22"]
[BlackClock "0:00:08"]

1. d4 {[%clk 0:03:00]}  d5 {[%clk 0:02:59]} 2. Nf3 {[%clk 0:03:00]}  Nf6 {[%clk 0:02:56]} 3. c3 {[%clk 0:03:00]}  c5 {[%clk 0:02:51]} 4. e3 {[%clk 0:02:58]}  Nbd7 {[%clk 0:02:48]} 5. c4 {[%clk 0:02:52]}  e6 {[%clk 0:02:41]} 6. Nc3 {[%clk 0:02:52]}  dxc4 {[%clk 0:02:34]} 7. Bxc4 {[%clk 0:02:53]}  a6 {[%clk 0:02:35]} 8. a4 {[%clk 0:02:51]}  Be7 {[%clk 0:02:33]} 9. O-O {[%clk 0:02:52]}  O-O {[%clk 0:02:32]} 10. Qe2 {[%clk 0:02:49]}  Qc7 {[%clk 0:02:28]} 11. Rd1 {[%clk 0:02:47]}  cxd4 {[%clk 0:02:27]} 12. exd4 {[%clk 0:02:48]}  Nb6 {[%clk 0:02:12]} 13. Bb3 {[%clk 0:02:36]}  Nbd5 {[%clk 0:02:11]} 14. Nxd5 {[%clk 0:02:26]}  Nxd5 {[%clk 0:02:10]} 15. Ne5 {[%clk 0:02:21]}  f6 {[%clk 0:01:54]} 16. Nf3 {[%clk 0:02:08]}  Bd6 {[%clk 0:01:44]} 17. h4 {[%clk 0:02:06]}  Bd7 {[%clk 0:01:42]} 18. h5 {[%clk 0:02:03]}  Rae8 {[%clk 0:01:26]} 19. h6 {[%clk 0:02:03]}  g5 {[%clk 0:01:26]} 20. Be3 {[%clk 0:01:52]}  Bc6 {[%clk 0:01:26]} 21. Rac1 {[%clk 0:01:45]}  Qf7 {[%clk 0:01:26]} 22. Nd2 {[%clk 0:01:30]}  Qg6 {[%clk 0:01:16]} 23. Rxc6 {[%clk 0:00:27]}  bxc6 {[%clk 0:01:16]} 24. Rc1 {[%clk 0:00:27]}  Qxh6 {[%clk 0:01:16]} 25. Nf1 {[%clk 0:00:25]}  Rb8 {[%clk 0:01:14]} 26. Ba2 {[%clk 0:00:22]}  Rfc8 {[%clk 0:00:37]} 27. Qxa6 {[%clk 0:00:22]}  f5 {[%clk 0:00:20]} 28. Rxc6 {[%clk 0:00:21]}  Rxc6 {[%clk 0:00:11]} 29. Qxc6 {[%clk 0:00:22]}  Nxe3 {[%clk 0:00:08]} 30. Qxd6 {[%clk 0:00:22]} 1-0


[Site "https://www.chess.com"]

[Event "Titled Tuesday Blitz January 11 2022"]
[White "Tari, Aryan"]
[Black "Sipila, Vilka"]
[WhiteFideId "1510045"]
[BlackFideId "505455"]
[WhiteElo "2567"]
[BlackElo "2329"]
[Result "1-0"]
[Round "06"]
[TimeControl "180+1"]
[Date "2022.01.11"]
[WhiteClock "0:00:30"]
[BlackClock "0:00:02"]

1. d4 {[%clk 0:02:50]}  f5 {[%clk 0:03:00]} 2. c4 {[%clk 0:02:48]}  Nf6 {[%clk 0:03:00]} 3. Nc3 {[%clk 0:02:48]}  g6 {[%clk 0:03:01]} 4. h4 {[%clk 0:02:48]}  d6 {[%clk 0:03:00]} 5. h5 {[%clk 0:02:42]}  Nxh5 {[%clk 0:02:59]} 6. Rxh5 {[%clk 0:02:41]}  gxh5 {[%clk 0:02:59]} 7. e4 {[%clk 0:02:42]}  fxe4 {[%clk 0:03:00]} 8. Qxh5+ {[%clk 0:02:36]}  Kd7 {[%clk 0:03:00]} 9. Nxe4 {[%clk 0:02:14]}  Qe8 {[%clk 0:03:00]} 10. Qh4 {[%clk 0:02:12]}  Nc6 {[%clk 0:02:49]} 11. Nf3 {[%clk 0:02:10]}  Kd8 {[%clk 0:02:46]} 12. Bd2 {[%clk 0:01:59]}  Qg6 {[%clk 0:02:43]} 13. Bd3 {[%clk 0:01:47]}  Qg4 {[%clk 0:02:43]} 14. Qh2 {[%clk 0:01:35]}  Bf5 {[%clk 0:02:42]} 15. Nfg5 {[%clk 0:01:32]}  Bxe4 {[%clk 0:02:34]} 16. Bxe4 {[%clk 0:01:31]}  Rg8 {[%clk 0:02:03]} 17. f3 {[%clk 0:01:24]}  Qd7 {[%clk 0:02:01]} 18. Qxh7 {[%clk 0:01:19]}  Rxg5 {[%clk 0:00:23]} 19. Bxg5 {[%clk 0:01:19]}  Qe6 {[%clk 0:00:23]} 20. d5 {[%clk 0:01:08]}  Qe5 {[%clk 0:00:24]} 21. Qg8 {[%clk 0:01:07]}  Kd7 {[%clk 0:00:10]} 22. dxc6+ {[%clk 0:01:06]}  bxc6 {[%clk 0:00:10]} 23. O-O-O {[%clk 0:00:56]}  Bg7 {[%clk 0:00:10]} 24. Bf5+ {[%clk 0:00:56]}  Qxf5 {[%clk 0:00:07]} 25. Qxg7 {[%clk 0:00:57]}  Rb8 {[%clk 0:00:06]} 26. Qxe7+ {[%clk 0:00:56]}  Kc8 {[%clk 0:00:06]} 27. Bd2 {[%clk 0:00:47]}  Qc5 {[%clk 0:00:04]} 28. Qe4 {[%clk 0:00:45]}  d5 {[%clk 0:00:04]} 29. Qc2 {[%clk 0:00:39]}  dxc4 {[%clk 0:00:03]} 30. Bc3 {[%clk 0:00:40]}  Kb7 {[%clk 0:00:03]} 31. g4 {[%clk 0:00:39]}  Rf8 {[%clk 0:00:03]} 32. Qe4 {[%clk 0:00:39]}  Qf2 {[%clk 0:00:03]} 33. Qxc4 {[%clk 0:00:34]}  Rxf3 {[%clk 0:00:02]} 34. Kb1 {[%clk 0:00:34]}  Qg2 {[%clk 0:00:02]} 35. a3 {[%clk 0:00:32]}  Rf2 {[%clk 0:00:02]} 36. Ka2 {[%clk 0:00:32]}  Qg3 {[%clk 0:00:02]} 37. Rd7 {[%clk 0:00:31]}  Rf4 {[%clk 0:00:01]} 38. Qb3+ {[%clk 0:00:31]}  Kc8 {[%clk 0:00:02]} 39. Qe6 {[%clk 0:00:31]}  Kb7 {[%clk 0:00:02]} 40. Qe5 {[%clk 0:00:30]}  Qxg4 {[%clk 0:00:02]} 41. Qxc7+ {[%clk 0:00:30]}  Ka6 {[%clk 0:00:02]} 42. Qxc6# {[%clk 0:00:30]} 1-0


[Site "https://www.chess.com"]

[Event "Titled Tuesday Blitz January 11 2022"]
[White "Willow, Jonah B"]
[Black "Korchmar, Vasiliy"]
[WhiteFideId "438804"]
[BlackFideId "24131750"]
[WhiteElo "2261"]
[BlackElo "2370"]
[Result "1-0"]
[Round "06"]
[TimeControl "180+1"]
[Date "2022.01.11"]
[WhiteClock "0:01:05"]
[BlackClock "0:01:54"]

1. e4 {[%clk 0:03:00]}  c5 {[%clk 0:02:59]} 2. Nf3 {[%clk 0:02:55]}  d6 {[%clk 0:03:00]} 3. Nc3 {[%clk 0:02:55]}  Nc6 {[%clk 0:02:59]} 4. d4 {[%clk 0:02:55]}  cxd4 {[%clk 0:03:00]} 5. Nxd4 {[%clk 0:02:56]}  Nf6 {[%clk 0:03:00]} 6. g3 {[%clk 0:02:55]}  g6 {[%clk 0:02:56]} 7. Nde2 {[%clk 0:02:55]}  Bg7 {[%clk 0:02:56]} 8. Bg2 {[%clk 0:02:55]}  O-O {[%clk 0:02:57]} 9. O-O {[%clk 0:02:55]}  Rb8 {[%clk 0:02:57]} 10. a4 {[%clk 0:02:54]}  a6 {[%clk 0:02:57]} 11. Nd5 {[%clk 0:02:52]}  b5 {[%clk 0:02:52]} 12. axb5 {[%clk 0:02:53]}  axb5 {[%clk 0:02:53]} 13. c3 {[%clk 0:02:52]}  Nd7 {[%clk 0:02:39]} 14. Bg5 {[%clk 0:02:21]}  h6 {[%clk 0:02:37]} 15. Be3 {[%clk 0:02:12]}  b4 {[%clk 0:02:35]} 16. Qc1 {[%clk 0:02:07]}  Kh7 {[%clk 0:02:27]} 17. Nd4 {[%clk 0:01:57]}  bxc3 {[%clk 0:02:09]} 18. bxc3 {[%clk 0:01:07]}  Nce5 {[%clk 0:02:08]} 19. f4 {[%clk 0:01:06]}  Nc4 {[%clk 0:02:07]} 20. Nc6 {[%clk 0:01:06]}  Qe8 {[%clk 0:01:54]} 21. Nc7 {[%clk 0:01:05]} 1-0


[Site "https://www.chess.com"]

[Event "Titled Tuesday Blitz January 11 2022"]
[White "Yeletsky, Ivan"]
[Black "Artemenko, Oleg"]
[WhiteFideId "24180327"]
[BlackFideId "14201798"]
[WhiteElo "2348"]
[BlackElo "2287"]
[Result "1-0"]
[Round "06"]
[TimeControl "180+1"]
[Date "2022.01.11"]
[WhiteClock "0:00:48"]
[BlackClock "0:00:38"]

1. c4 {[%clk 0:02:33]}  Nf6 {[%clk 0:02:58]} 2. Nc3 {[%clk 0:02:27]}  e6 {[%clk 0:02:58]} 3. g4 {[%clk 0:02:25]}  Nxg4 {[%clk 0:02:55]} 4. e4 {[%clk 0:02:25]}  Nf6 {[%clk 0:02:49]} 5. e5 {[%clk 0:02:22]}  Ng8 {[%clk 0:02:49]} 6. d4 {[%clk 0:02:22]}  d6 {[%clk 0:02:49]} 7. Nf3 {[%clk 0:02:19]}  dxe5 {[%clk 0:02:45]} 8. Nxe5 {[%clk 0:02:19]}  Nf6 {[%clk 0:02:45]} 9. Rg1 {[%clk 0:02:17]}  Nbd7 {[%clk 0:02:43]} 10. f4 {[%clk 0:02:15]}  c6 {[%clk 0:02:39]} 11. Be3 {[%clk 0:02:14]}  Qa5 {[%clk 0:02:37]} 12. Qc2 {[%clk 0:02:03]}  g6 {[%clk 0:02:30]} 13. O-O-O {[%clk 0:01:49]}  Bb4 {[%clk 0:02:29]} 14. Bd3 {[%clk 0:01:44]}  Bxc3 {[%clk 0:02:24]} 15. bxc3 {[%clk 0:01:44]}  Rg8 {[%clk 0:02:11]} 16. Kb2 {[%clk 0:01:20]}  Nb6 {[%clk 0:02:06]} 17. Ka1 {[%clk 0:01:19]}  Na4 {[%clk 0:02:03]} 18. Bd2 {[%clk 0:01:18]}  Nb6 {[%clk 0:01:49]} 19. c5 {[%clk 0:01:15]}  Nbd7 {[%clk 0:01:40]} 20. Nc4 {[%clk 0:01:15]}  Qd8 {[%clk 0:01:30]} 21. Nd6+ {[%clk 0:01:14]}  Kf8 {[%clk 0:01:30]} 22. f5 {[%clk 0:01:11]}  exf5 {[%clk 0:01:27]} 23. Bh6+ {[%clk 0:01:11]}  Rg7 {[%clk 0:01:27]} 24. Nxf5 {[%clk 0:01:11]}  Ne8 {[%clk 0:01:25]} 25. Rde1 {[%clk 0:01:06]}  Ndf6 {[%clk 0:01:25]} 26. Nxg7 {[%clk 0:01:03]}  Nxg7 {[%clk 0:01:26]} 27. Qf2 {[%clk 0:01:03]}  Nh5 {[%clk 0:01:14]} 28. Bxg6 {[%clk 0:00:56]}  hxg6 {[%clk 0:01:12]} 29. Rxg6 {[%clk 0:00:56]}  Qd5 {[%clk 0:00:51]} 30. Rd6 {[%clk 0:00:47]}  Qxd6 {[%clk 0:00:38]} 31. cxd6 {[%clk 0:00:48]} 1-0


[Site "https://www.chess.com"]

[Event "Titled Tuesday Blitz January 11 2022"]
[White "Yoo, Christopher Woojin"]
[Black "Sanal, Vahap"]
[WhiteFideId "30909694"]
[BlackFideId "6300545"]
[WhiteElo "2105"]
[BlackElo "2603"]
[Result "1-0"]
[Round "06"]
[TimeControl "180+1"]
[Date "2022.01.11"]
[WhiteClock "0:01:59"]
[BlackClock "0:01:21"]

1. e4 {[%clk 0:03:00]}  e5 {[%clk 0:02:59]} 2. Nf3 {[%clk 0:03:00]}  Nc6 {[%clk 0:02:59]} 3. Bb5 {[%clk 0:02:58]}  a6 {[%clk 0:02:59]} 4. Ba4 {[%clk 0:02:59]}  Nf6 {[%clk 0:03:00]} 5. d4 {[%clk 0:02:59]}  exd4 {[%clk 0:02:54]} 6. O-O {[%clk 0:02:58]}  Be7 {[%clk 0:02:51]} 7. e5 {[%clk 0:02:58]}  Ne4 {[%clk 0:02:50]} 8. Nxd4 {[%clk 0:02:58]}  O-O {[%clk 0:02:48]} 9. Re1 {[%clk 0:02:59]}  Nc5 {[%clk 0:02:40]} 10. Bxc6 {[%clk 0:02:58]}  dxc6 {[%clk 0:02:40]} 11. Nc3 {[%clk 0:02:58]}  Re8 {[%clk 0:02:39]} 12. Be3 {[%clk 0:02:56]}  Bf8 {[%clk 0:02:38]} 13. f4 {[%clk 0:02:55]}  Ne6 {[%clk 0:02:36]} 14. Nf3 {[%clk 0:02:54]}  Qxd1 {[%clk 0:02:25]} 15. Raxd1 {[%clk 0:02:55]}  b6 {[%clk 0:02:22]} 16. f5 {[%clk 0:02:47]}  Nc5 {[%clk 0:02:17]} 17. g4 {[%clk 0:02:47]}  Nd7 {[%clk 0:02:10]} 18. Bf4 {[%clk 0:02:43]}  Bb4 {[%clk 0:01:52]} 19. a3 {[%clk 0:02:35]}  Bxc3 {[%clk 0:01:52]} 20. bxc3 {[%clk 0:02:36]}  Nf8 {[%clk 0:01:50]} 21. Ng5 {[%clk 0:02:18]}  c5 {[%clk 0:01:48]} 22. e6 {[%clk 0:02:15]}  fxe6 {[%clk 0:01:46]} 23. Bxc7 {[%clk 0:02:15]}  h6 {[%clk 0:01:44]} 24. Ne4 {[%clk 0:02:12]}  Re7 {[%clk 0:01:32]} 25. Bxb6 {[%clk 0:02:07]}  Rb7 {[%clk 0:01:30]} 26. Bxc5 {[%clk 0:02:01]}  Bd7 {[%clk 0:01:27]} 27. Bxf8 {[%clk 0:01:59]}  Rxf8 {[%clk 0:01:21]} 28. Nc5 {[%clk 0:01:59]} 1-0


[Site "https://www.chess.com"]

[Event "Titled Tuesday Blitz January 11 2022"]
[White "Aloma Vidal, Robert"]
[Black "Dastan, Muhammed Batuhan"]
[WhiteFideId "2260409"]
[BlackFideId "6300014"]
[WhiteElo "2435"]
[BlackElo "2410"]
[Result "1-0"]
[Round "07"]
[TimeControl "180+1"]
[Date "2022.01.11"]
[WhiteClock "0:01:20"]
[BlackClock "0:00:07"]

1. e4 {[%clk 0:02:49]}  c5 {[%clk 0:02:59]} 2. c3 {[%clk 0:02:49]}  Nf6 {[%clk 0:02:59]} 3. e5 {[%clk 0:02:49]}  Nd5 {[%clk 0:02:59]} 4. Nf3 {[%clk 0:02:50]}  d6 {[%clk 0:02:59]} 5. exd6 {[%clk 0:02:48]}  e6 {[%clk 0:02:54]} 6. g3 {[%clk 0:02:47]}  Bxd6 {[%clk 0:02:53]} 7. Bg2 {[%clk 0:02:48]}  O-O {[%clk 0:02:53]} 8. O-O {[%clk 0:02:48]}  Nc6 {[%clk 0:02:53]} 9. d4 {[%clk 0:02:49]}  cxd4 {[%clk 0:02:52]} 10. Nxd4 {[%clk 0:02:50]}  Nxd4 {[%clk 0:02:52]} 11. Qxd4 {[%clk 0:02:51]}  Qc7 {[%clk 0:02:45]} 12. c4 {[%clk 0:02:51]}  Ne7 {[%clk 0:02:39]} 13. Nc3 {[%clk 0:02:45]}  a6 {[%clk 0:02:32]} 14. Ne4 {[%clk 0:02:30]}  Be5 {[%clk 0:02:31]} 15. Qc5 {[%clk 0:02:31]}  Nc6 {[%clk 0:02:24]} 16. Rd1 {[%clk 0:02:19]}  Qa5 {[%clk 0:01:22]} 17. Bd2 {[%clk 0:02:04]}  Qxc5 {[%clk 0:01:13]} 18. Nxc5 {[%clk 0:02:05]}  Bxb2 {[%clk 0:01:01]} 19. Rab1 {[%clk 0:02:05]}  Bd4 {[%clk 0:01:01]} 20. Nxb7 {[%clk 0:02:03]}  Bd7 {[%clk 0:00:54]} 21. Bb4 {[%clk 0:01:50]}  Rfc8 {[%clk 0:00:30]} 22. Nd6 {[%clk 0:01:44]}  e5 {[%clk 0:00:27]} 23. Nxc8 {[%clk 0:01:39]}  Rxc8 {[%clk 0:00:27]} 24. Bd6 {[%clk 0:01:38]}  Bf5 {[%clk 0:00:25]} 25. Bxc6 {[%clk 0:01:30]}  Rxc6 {[%clk 0:00:25]} 26. Rb8+ {[%clk 0:01:24]}  Bc8 {[%clk 0:00:25]} 27. Bxe5 {[%clk 0:01:22]}  Bxe5 {[%clk 0:00:07]} 28. Rd8# {[%clk 0:01:20]} 1-0


[Site "https://www.chess.com"]

[Event "Titled Tuesday Blitz January 11 2022"]
[White "Andreikin, Dmitry"]
[Black "Moskalenko, Alexander"]
[WhiteFideId "4158814"]
[BlackFideId "4155351"]
[WhiteElo "2736"]
[BlackElo "2515"]
[Result "1-0"]
[Round "07"]
[TimeControl "180+1"]
[Date "2022.01.11"]
[WhiteClock "0:00:41"]
[BlackClock "0:00:07"]

1. e4 {[%clk 0:03:00]}  e6 {[%clk 0:02:58]} 2. d4 {[%clk 0:03:00]}  d5 {[%clk 0:02:57]} 3. Nc3 {[%clk 0:03:01]}  Nf6 {[%clk 0:02:58]} 4. e5 {[%clk 0:03:00]}  Nfd7 {[%clk 0:02:58]} 5. f4 {[%clk 0:03:00]}  c5 {[%clk 0:02:59]} 6. Nf3 {[%clk 0:03:01]}  Nc6 {[%clk 0:02:59]} 7. Be3 {[%clk 0:03:01]}  Qb6 {[%clk 0:02:59]} 8. Na4 {[%clk 0:03:01]}  Qc7 {[%clk 0:02:53]} 9. Nxc5 {[%clk 0:02:58]}  Nxd4 {[%clk 0:02:53]} 10. Nxd4 {[%clk 0:02:58]}  Nxc5 {[%clk 0:02:52]} 11. c3 {[%clk 0:02:57]}  a6 {[%clk 0:02:48]} 12. Bd3 {[%clk 0:02:56]}  Nxd3+ {[%clk 0:02:46]} 13. Qxd3 {[%clk 0:02:57]}  Bd7 {[%clk 0:02:46]} 14. O-O {[%clk 0:02:55]}  Bc5 {[%clk 0:02:42]} 15. Rf3 {[%clk 0:02:53]}  g6 {[%clk 0:02:40]} 16. Kh1 {[%clk 0:02:52]}  h5 {[%clk 0:02:39]} 17. h3 {[%clk 0:02:43]}  Rc8 {[%clk 0:02:33]} 18. Qd2 {[%clk 0:02:43]}  Be7 {[%clk 0:02:33]} 19. Rff1 {[%clk 0:02:40]}  Kf8 {[%clk 0:02:29]} 20. Nf3 {[%clk 0:02:38]}  Qc4 {[%clk 0:02:21]} 21. Bd4 {[%clk 0:02:33]}  b5 {[%clk 0:02:17]} 22. a3 {[%clk 0:02:32]}  a5 {[%clk 0:02:08]} 23. Ng5 {[%clk 0:02:31]}  Kg7 {[%clk 0:02:05]} 24. Rf3 {[%clk 0:02:29]}  h4 {[%clk 0:02:01]} 25. Qf2 {[%clk 0:02:21]}  b4 {[%clk 0:01:44]} 26. axb4 {[%clk 0:02:19]}  axb4 {[%clk 0:01:45]} 27. Ra7 {[%clk 0:02:01]}  Rc7 {[%clk 0:01:45]} 28. Rxc7 {[%clk 0:01:50]}  Qxc7 {[%clk 0:01:46]} 29. Kh2 {[%clk 0:01:49]}  Qc4 {[%clk 0:01:38]} 30. Qd2 {[%clk 0:01:46]}  Bb5 {[%clk 0:01:26]} 31. Re3 {[%clk 0:01:31]}  b3 {[%clk 0:01:17]} 32. Re1 {[%clk 0:01:15]}  Qd3 {[%clk 0:00:16]} 33. Qxd3 {[%clk 0:01:15]}  Bxd3 {[%clk 0:00:17]} 34. Ra1 {[%clk 0:01:15]}  Rc8 {[%clk 0:00:14]} 35. Ra7 {[%clk 0:01:11]}  Bxg5 {[%clk 0:00:14]} 36. fxg5 {[%clk 0:01:11]}  Rc6 {[%clk 0:00:15]} 37. Ra8 {[%clk 0:00:51]}  Ra6 {[%clk 0:00:13]} 38. Rb8 {[%clk 0:00:51]}  Ra2 {[%clk 0:00:09]} 39. Bc5 {[%clk 0:00:49]}  Rxb2 {[%clk 0:00:10]} 40. Be7 {[%clk 0:00:48]}  f5 {[%clk 0:00:07]} 41. exf6+ {[%clk 0:00:41]}  Kh7 {[%clk 0:00:07]} 42. f7 {[%clk 0:00:41]}  Be4 {[%clk 0:00:07]} 43. Rh8+ {[%clk 0:00:41]} 1-0


[Site "https://www.chess.com"]

[Event "Titled Tuesday Blitz January 11 2022"]
[White "Boyer, Mahel"]
[Black "Onyshchuk, Volodymyr"]
[WhiteFideId "45102422"]
[BlackFideId "14114038"]
[WhiteElo "2328"]
[BlackElo "2642"]
[Result "0-1"]
[Round "07"]
[TimeControl "180+1"]
[Date "2022.01.11"]
[WhiteClock "0:00:03"]
[BlackClock "0:01:09"]

1. d4 {[%clk 0:02:52]}  g6 {[%clk 0:03:00]} 2. e4 {[%clk 0:02:50]}  Bg7 {[%clk 0:03:01]} 3. Nc3 {[%clk 0:02:51]}  d6 {[%clk 0:03:01]} 4. h4 {[%clk 0:02:50]}  h6 {[%clk 0:02:59]} 5. h5 {[%clk 0:02:50]}  g5 {[%clk 0:02:59]} 6. f4 {[%clk 0:02:50]}  gxf4 {[%clk 0:02:59]} 7. Bxf4 {[%clk 0:02:51]}  Nc6 {[%clk 0:02:59]} 8. Nf3 {[%clk 0:02:51]}  Bg4 {[%clk 0:02:57]} 9. d5 {[%clk 0:02:52]}  Ne5 {[%clk 0:02:56]} 10. Be2 {[%clk 0:02:52]}  Bxf3 {[%clk 0:02:45]} 11. gxf3 {[%clk 0:02:51]}  c6 {[%clk 0:02:44]} 12. Qd2 {[%clk 0:02:51]}  Nf6 {[%clk 0:02:36]} 13. O-O-O {[%clk 0:02:50]}  cxd5 {[%clk 0:02:35]} 14. Nxd5 {[%clk 0:02:48]}  Nxd5 {[%clk 0:02:34]} 15. Qxd5 {[%clk 0:02:48]}  Qb6 {[%clk 0:02:33]} 16. Rhg1 {[%clk 0:02:22]}  Bf6 {[%clk 0:02:29]} 17. Qb5+ {[%clk 0:01:52]}  Qxb5 {[%clk 0:02:27]} 18. Bxb5+ {[%clk 0:01:52]}  Kd8 {[%clk 0:02:18]} 19. Be2 {[%clk 0:01:50]}  Kc7 {[%clk 0:02:15]} 20. Be3 {[%clk 0:01:50]}  Rag8 {[%clk 0:02:13]} 21. f4 {[%clk 0:01:47]}  Nc6 {[%clk 0:02:12]} 22. Bc4 {[%clk 0:01:42]}  e6 {[%clk 0:02:07]} 23. f5 {[%clk 0:01:37]}  Ne5 {[%clk 0:02:01]} 24. Bb3 {[%clk 0:01:36]}  exf5 {[%clk 0:01:50]} 25. exf5 {[%clk 0:01:35]}  Bg5 {[%clk 0:01:50]} 26. Bxg5 {[%clk 0:01:11]}  hxg5 {[%clk 0:01:49]} 27. Rg3 {[%clk 0:00:30]}  Rh6 {[%clk 0:01:47]} 28. Rc3+ {[%clk 0:00:27]}  Kd7 {[%clk 0:01:47]} 29. Bd5 {[%clk 0:00:26]}  g4 {[%clk 0:01:38]} 30. Bxb7 {[%clk 0:00:23]}  Rxh5 {[%clk 0:01:37]} 31. Be4 {[%clk 0:00:16]}  g3 {[%clk 0:01:32]} 32. Ra3 {[%clk 0:00:16]}  Ke7 {[%clk 0:01:31]} 33. Rxa7+ {[%clk 0:00:15]}  Kf6 {[%clk 0:01:31]} 34. Rxd6+ {[%clk 0:00:15]}  Kg5 {[%clk 0:01:31]} 35. b3 {[%clk 0:00:15]}  Rh2 {[%clk 0:01:25]} 36. Ra5 {[%clk 0:00:10]}  Kf4 {[%clk 0:01:24]} 37. Rd4 {[%clk 0:00:04]}  Ke3 {[%clk 0:01:20]} 38. Rb4 {[%clk 0:00:04]}  f6 {[%clk 0:01:17]} 39. Bd5 {[%clk 0:00:04]}  g2 {[%clk 0:01:12]} 40. Bxg2 {[%clk 0:00:04]}  Rgxg2 {[%clk 0:01:11]} 41. Rc5 {[%clk 0:00:05]}  Nd3+ {[%clk 0:01:10]} 42. cxd3 {[%clk 0:00:03]}  Rg1# {[%clk 0:01:09]} 0-1


[Site "https://www.chess.com"]

[Event "Titled Tuesday Blitz January 11 2022"]
[White "Bryakin, Mikhail"]
[Black "Hakobyan, Aram"]
[WhiteFideId "4165314"]
[BlackFideId "13306677"]
[WhiteElo "2421"]
[BlackElo "2557"]
[Result "0-1"]
[Round "07"]
[TimeControl "180+1"]
[Date "2022.01.11"]
[WhiteClock "0:01:34"]
[BlackClock "0:02:01"]

1. e4 {[%clk 0:03:00]}  c6 {[%clk 0:02:52]} 2. d4 {[%clk 0:03:00]}  d5 {[%clk 0:02:51]} 3. exd5 {[%clk 0:03:00]}  cxd5 {[%clk 0:02:51]} 4. Bd3 {[%clk 0:03:01]}  Nf6 {[%clk 0:02:51]} 5. c3 {[%clk 0:03:00]}  Bg4 {[%clk 0:02:51]} 6. Ne2 {[%clk 0:02:58]}  e6 {[%clk 0:02:51]} 7. Bf4 {[%clk 0:02:57]}  Bd6 {[%clk 0:02:50]} 8. f3 {[%clk 0:02:57]}  Bh5 {[%clk 0:02:49]} 9. O-O {[%clk 0:02:58]}  Bg6 {[%clk 0:02:49]} 10. Qc2 {[%clk 0:02:54]}  Nc6 {[%clk 0:02:48]} 11. Nd2 {[%clk 0:02:52]}  Rc8 {[%clk 0:02:45]} 12. Bxd6 {[%clk 0:02:51]}  Qxd6 {[%clk 0:02:44]} 13. Rae1 {[%clk 0:02:51]}  b5 {[%clk 0:02:38]} 14. a3 {[%clk 0:02:48]}  a5 {[%clk 0:02:30]} 15. Qb1 {[%clk 0:02:48]}  b4 {[%clk 0:02:29]} 16. axb4 {[%clk 0:02:44]}  axb4 {[%clk 0:02:30]} 17. Nb3 {[%clk 0:02:43]}  bxc3 {[%clk 0:02:25]} 18. bxc3 {[%clk 0:02:44]}  Rb8 {[%clk 0:02:25]} 19. Nec1 {[%clk 0:02:41]}  Na5 {[%clk 0:02:17]} 20. Rd1 {[%clk 0:02:19]}  Nxb3 {[%clk 0:02:11]} 21. Nxb3 {[%clk 0:02:19]}  Qa3 {[%clk 0:02:12]} 22. Qa1 {[%clk 0:01:34]}  Rxb3 {[%clk 0:02:01]} 0-1


[Site "https://www.chess.com"]

[Event "Titled Tuesday Blitz January 11 2022"]
[White "Chizhikov, Vladislav"]
[Black "Rustemov, Alexander"]
[WhiteFideId "4178157"]
[BlackFideId "4119002"]
[WhiteElo "2120"]
[BlackElo "2809"]
[Result "0-1"]
[Round "07"]
[TimeControl "180+1"]
[Date "2022.01.11"]
[WhiteClock "0:00:12"]
[BlackClock "0:00:28"]

1. e4 {[%clk 0:03:00]}  e6 {[%clk 0:02:59]} 2. d4 {[%clk 0:03:00]}  d5 {[%clk 0:03:00]} 3. Nc3 {[%clk 0:03:01]}  Bb4 {[%clk 0:02:59]} 4. e5 {[%clk 0:03:00]}  c5 {[%clk 0:03:00]} 5. a3 {[%clk 0:03:00]}  Bxc3+ {[%clk 0:03:00]} 6. bxc3 {[%clk 0:03:00]}  Ne7 {[%clk 0:03:01]} 7. Qg4 {[%clk 0:03:00]}  O-O {[%clk 0:03:01]} 8. Bd3 {[%clk 0:02:55]}  Qa5 {[%clk 0:03:01]} 9. Bd2 {[%clk 0:02:36]}  Nbc6 {[%clk 0:03:01]} 10. Nf3 {[%clk 0:02:31]}  f5 {[%clk 0:03:00]} 11. exf6 {[%clk 0:02:30]}  Rxf6 {[%clk 0:03:00]} 12. Qh5 {[%clk 0:02:28]}  Nf5 {[%clk 0:02:59]} 13. O-O {[%clk 0:02:15]}  c4 {[%clk 0:02:58]} 14. Bxf5 {[%clk 0:02:10]}  Rxf5 {[%clk 0:02:58]} 15. Qh4 {[%clk 0:01:58]}  Qa4 {[%clk 0:02:53]} 16. Ra2 {[%clk 0:01:57]}  Bd7 {[%clk 0:02:53]} 17. Re1 {[%clk 0:01:54]}  Raf8 {[%clk 0:02:21]} 18. Ng5 {[%clk 0:01:24]}  h6 {[%clk 0:02:20]} 19. Nxe6 {[%clk 0:01:24]}  Bxe6 {[%clk 0:02:18]} 20. Rxe6 {[%clk 0:01:17]}  Rxf2 {[%clk 0:02:18]} 21. Qxf2 {[%clk 0:00:49]}  Rxf2 {[%clk 0:02:17]} 22. Kxf2 {[%clk 0:00:49]}  Qb5 {[%clk 0:02:05]} 23. Re1 {[%clk 0:00:45]}  Kh7 {[%clk 0:02:01]} 24. a4 {[%clk 0:00:41]}  Qb6 {[%clk 0:01:59]} 25. Kf1 {[%clk 0:00:32]}  Qd8 {[%clk 0:01:55]} 26. Raa1 {[%clk 0:00:29]}  Qd6 {[%clk 0:01:48]} 27. Kg1 {[%clk 0:00:24]}  Qg6 {[%clk 0:01:47]} 28. Re2 {[%clk 0:00:17]}  b6 {[%clk 0:01:47]} 29. Rf1 {[%clk 0:00:17]}  Qxc2 {[%clk 0:01:45]} 30. Rf7 {[%clk 0:00:16]}  Qd1+ {[%clk 0:01:40]} 31. Kf2 {[%clk 0:00:15]}  Qxa4 {[%clk 0:01:30]} 32. Bf4 {[%clk 0:00:15]}  Qb3 {[%clk 0:01:04]} 33. Rc7 {[%clk 0:00:14]}  Qxc3 {[%clk 0:01:00]} 34. Rxc6 {[%clk 0:00:13]}  Qxd4+ {[%clk 0:01:00]} 35. Kg3 {[%clk 0:00:14]}  c3 {[%clk 0:00:51]} 36. Re7 {[%clk 0:00:13]}  b5 {[%clk 0:00:42]} 37. Rcc7 {[%clk 0:00:13]}  b4 {[%clk 0:00:41]} 38. Be5 {[%clk 0:00:13]}  Qd3+ {[%clk 0:00:37]} 39. Kf2 {[%clk 0:00:14]}  Kg6 {[%clk 0:00:35]} 40. Rxg7+ {[%clk 0:00:13]}  Kf5 {[%clk 0:00:35]} 41. Rge7 {[%clk 0:00:12]}  c2 {[%clk 0:00:30]} 42. Bb2 {[%clk 0:00:12]}  Qd2+ {[%clk 0:00:28]} 43. Kg3 {[%clk 0:00:12]}  Qf4+ {[%clk 0:00:28]} 44. Kh3 {[%clk 0:00:12]}  Qg4# {[%clk 0:00:28]} 0-1


[Site "https://www.chess.com"]